{"text_format":"3","workbook":"xlsx","n_sheets":2,"sheets":["Praćenje potvrda dolaska","Pregled potvrda dolaska"],"not_rendered":{"charts":2,"defined_names":22},"read":"whole","date_system":"1900"}

{"sheet":"Praćenje potvrda dolaska","index":0,"n_rows":15,"n_cols":15,"rows_kept":15,"merged":[[0,3,0,4],[0,5,0,7]]}
[{"$nulls":5},"PREGLED POTVRDA DOLASKA"]
[null,"DATUM VENČANJA",null,"praćenje poziva za venčanje"]
[null,{"$f":"TODAY()+283","v":"2023-05-21"},null,"IME GOSTA","POSLATO?","POTVRDA DOLASKA","ZABAVA","GOST","SRODSTVO","ADRESA","GRAD","DRŽAVA","ZIP kôd","TELEFON","ADRESA E-POŠTE ZA KONTAKT"]
[null,"PREOSTALO DANA",null,"Ime 1","Da","Da",1,"Budući supružnik 1","Brat","Adresa","Grad","Država","ZIP kôd","Telefon","neko@example.com"]
[null,{"$f":"Preostalo_Dana","v":283},null,"Ime 2","Da","Ne",3,"Budući supružnik 1","Prijatelj","Adresa","Grad","Država","ZIP kôd","Telefon","neko@example.com"]
[null,"PRISUTNI",null,"Ime 3","Da","Da",1,"Drugo","Prijatelj","Adresa","Grad","Država","ZIP kôd","Telefon","neko@example.com"]
[null,{"$f":"TotalAttending","v":12},null,"Ime 4","Da","Ne",2,"Budući supružnik 2","Prijatelj","Adresa","Grad","Država","ZIP kôd","Telefon","neko@example.com"]
[null,"ODSUTNI",null,"Ime 5","Da","Da",2,"Budući supružnik 2","Prijatelj","Adresa","Grad","Država","ZIP kôd","Telefon","neko@example.com"]
[null,{"$f":"TotalNotAttending","v":6},null,"Ime 6","Da","Uslovno",null,"Drugo","Prijatelj","Adresa","Grad","Država","ZIP kôd","Telefon","neko@example.com"]
[null,"NEIZJAŠNJENI",null,"Ime 7","Da","Da",2,"Budući supružnik 2","Prijatelj","Adresa","Grad","Država","ZIP kôd","Telefon","neko@example.com"]
[null,{"$f":"OutstandingRSVP","v":1},null,"Ime 8","Da","Ne",1,"Drugo","Prijatelj","Adresa","Grad","Država","ZIP kôd","Telefon","neko@example.com"]
[{"$nulls":3},"Ime 9","Da","Da",4,"Budući supružnik 1","Prijatelj","Adresa","Grad","Država","ZIP kôd","Telefon","neko@example.com"]
[{"$nulls":3},"Ime 10","Da","Da",2,"Budući supružnik 1","Prijatelj","Adresa","Grad","Država","ZIP kôd","Telefon","neko@example.com"]
[{"$nulls":3},"Ime 11","Da",null,null,"Budući supružnik 2","Brat","Adresa","Grad","Država","ZIP kôd","Telefon","neko@example.com"]
[{"$nulls":3},"UKUPNO:",{"$f":"COUNTIF('Praćenje potvrda dolaska'!$E$4:$E$14,\"Da\")","v":11},{"$f":"COUNTA('Praćenje potvrda dolaska'!$F$4:$F$14)","v":10},{"$f":"SUBTOTAL(109,tblInvites[ZABAVA])","v":18}]

{"sheet":"Pregled potvrda dolaska","index":1,"n_rows":11,"n_cols":15,"rows_kept":11,"merged":[[0,3,0,4],[0,5,0,8],[2,3,6,3],[2,4,6,4],[7,3,11,3],[7,4,11,4]]}
[{"$nulls":3},"PRAĆENJE POTVRDA DOLASKA"]
[null,"DATUM VENČANJA",null,"pregled potvrda dolaska",{"$nulls":10},"beleške"]
[null,{"$f":"Datum_Venčanja","v":"2023-05-21"},null,"DA","Grupisani trakasti grafikon koji prikazuje tipove gostiju koji su potvrdno odgovorili na potvrdu dolaska nalazi se u ovoj ćeliji."]
[null,"PREOSTALO DANA",{"$nulls":3},"DRUGO",{"$f":"IFERROR(SUMIFS(tblInvites[ZABAVA],tblInvites[GOST],\"=Drugo\",tblInvites[POTVRDA DOLASKA],\"Da\"),0)","v":1},{"$f":"tblInvites[[#Totals],[POSLATO?]]","v":11}]
[null,{"$f":"Preostalo_Dana","v":283},{"$nulls":3},"BUDUĆI SUPRUŽNIK 2",{"$f":"IFERROR(SUMIFS(tblInvites[ZABAVA],tblInvites[GOST],\"=Budući supružnik 2\",tblInvites[POTVRDA DOLASKA],\"Da\"),0)","v":4},{"$f":"tblInvites[[#Totals],[POSLATO?]]","v":11}]
[null,"PRISUTNI",{"$nulls":3},"BUDUĆI SUPRUŽNIK 1",{"$f":"IFERROR(SUMIFS(tblInvites[ZABAVA],tblInvites[GOST],\"=Budući supružnik 1\",tblInvites[POTVRDA DOLASKA],\"Da\"),0)","v":7},{"$f":"tblInvites[[#Totals],[POSLATO?]]","v":11}]
[null,{"$f":"TotalAttending","v":12}]
[null,"ODSUTNI",null,"NE","Grupisani trakasti grafikon koji prikazuje tipove gostiju koji su negativno odgovorili na potvrdu dolaska nalazi se u ovoj ćeliji."]
[null,{"$f":"TotalNotAttending","v":6},{"$nulls":3},"DRUGO",{"$f":"IFERROR(SUMIFS(tblInvites[ZABAVA],tblInvites[GOST],\"=Drugo\",tblInvites[POTVRDA DOLASKA],\"Ne\"),0)","v":1},{"$f":"tblInvites[[#Totals],[POSLATO?]]","v":11}]
[null,"NEIZJAŠNJENI",{"$nulls":3},"BUDUĆI SUPRUŽNIK 2",{"$f":"IFERROR(SUMIFS(tblInvites[ZABAVA],tblInvites[GOST],\"=Budući supružnik 2\",tblInvites[POTVRDA DOLASKA],\"Ne\"),0)","v":2},{"$f":"tblInvites[[#Totals],[POSLATO?]]","v":11}]
[null,{"$f":"OutstandingRSVP","v":1},{"$nulls":3},"BUDUĆI SUPRUŽNIK 1",{"$f":"IFERROR(SUMIFS(tblInvites[ZABAVA],tblInvites[GOST],\"=Budući supružnik 1\",tblInvites[POTVRDA DOLASKA],\"Ne\"),0)","v":3},{"$f":"tblInvites[[#Totals],[POSLATO?]]","v":11}]